[Event "Titled Tuesday Blitz August 10 2021"]
[White "Jakubowski, Krzysztof"]
[Black "Ibarra Jerez, Jose Carlos"]
[WhiteFideId "1112848"]
[BlackFideId "2226332"]
[WhiteElo "2414"]
[BlackElo "2602"]
[Result "0-1"]
[Round "02"]
[TimeControl "180+1"]
[Date "2021.08.10"]
[WhiteClock "0:00:02"]
[BlackClock "0:00:10"]

1. e4 {[%clk 0:03:00]}  c5 {[%clk 0:02:57]} 2. Nf3 {[%clk 0:02:59]}  Nc6 {[%clk 0:02:54]} 3. d4 {[%clk 0:02:59]}  cxd4 {[%clk 0:02:54]} 4. Nxd4 {[%clk 0:03:00]}  Qb6 {[%clk 0:02:50]} 5. Nb3 {[%clk 0:02:59]}  Nf6 {[%clk 0:02:48]} 6. Nc3 {[%clk 0:02:58]}  e6 {[%clk 0:02:47]} 7. Qe2 {[%clk 0:02:57]}  Bb4 {[%clk 0:02:42]} 8. Bd2 {[%clk 0:02:57]}  O-O {[%clk 0:02:40]} 9. a3 {[%clk 0:02:51]}  Bxc3 {[%clk 0:02:31]} 10. Bxc3 {[%clk 0:02:52]}  e5 {[%clk 0:02:30]} 11. O-O-O {[%clk 0:02:50]}  Re8 {[%clk 0:02:29]} 12. f3 {[%clk 0:02:30]}  Rd8 {[%clk 0:02:25]} 13. g4 {[%clk 0:02:27]}  d6 {[%clk 0:02:22]} 14. Nd2 {[%clk 0:01:51]}  Be6 {[%clk 0:02:01]} 15. Qb5 {[%clk 0:01:26]}  Qc7 {[%clk 0:01:50]} 16. Bc4 {[%clk 0:01:06]}  d5 {[%clk 0:01:41]} 17. exd5 {[%clk 0:01:04]}  Nxd5 {[%clk 0:01:41]} 18. Bxd5 {[%clk 0:01:01]}  Rxd5 {[%clk 0:01:33]} 19. Qe2 {[%clk 0:00:56]}  Rc8 {[%clk 0:01:30]} 20. Ne4 {[%clk 0:00:50]}  Nd4 {[%clk 0:01:26]} 21. Bxd4 {[%clk 0:00:49]}  exd4 {[%clk 0:01:27]} 22. Rd2 {[%clk 0:00:41]}  Qf4 {[%clk 0:01:04]} 23. Kb1 {[%clk 0:00:37]}  Rdd8 {[%clk 0:00:45]} 24. Rhd1 {[%clk 0:00:36]}  Bc4 {[%clk 0:00:43]} 25. Qf2 {[%clk 0:00:35]}  d3 {[%clk 0:00:44]} 26. cxd3 {[%clk 0:00:31]}  Bb3 {[%clk 0:00:37]} 27. Re1 {[%clk 0:00:26]}  h6 {[%clk 0:00:34]} 28. Nc3 {[%clk 0:00:22]}  Qd6 {[%clk 0:00:26]} 29. Re4 {[%clk 0:00:16]}  Qa6 {[%clk 0:00:18]} 30. Qe3 {[%clk 0:00:12]}  Be6 {[%clk 0:00:17]} 31. d4 {[%clk 0:00:11]}  Bc4 {[%clk 0:00:11]} 32. Rd1 {[%clk 0:00:08]}  b5 {[%clk 0:00:12]} 33. d5 {[%clk 0:00:07]}  Bb3 {[%clk 0:00:12]} 34. Re1 {[%clk 0:00:07]}  Qa5 {[%clk 0:00:12]} 35. Re7 {[%clk 0:00:06]}  Bc4 {[%clk 0:00:09]} 36. Qf4 {[%clk 0:00:06]}  Rf8 {[%clk 0:00:10]} 37. Rc1 {[%clk 0:00:05]}  Bd3+ {[%clk 0:00:10]} 38. Ka1 {[%clk 0:00:04]}  Rc4 {[%clk 0:00:10]} 39. Qd6 {[%clk 0:00:02]}  b4 {[%clk 0:00:10]} 0-1


[Site "https://www.chess.com"]

[Event "Titled Tuesday Blitz August 10 2021"]
[White "Kalashian, David"]
[Black "Lintchevski, Daniil"]
[WhiteFideId "13302418"]
[BlackFideId "4171055"]
[WhiteElo "2490"]
[BlackElo "2494"]
[Result "0-1"]
[Round "02"]
[TimeControl "180+1"]
[Date "2021.08.10"]
[WhiteClock "0:00:11"]
[BlackClock "0:01:36"]

1. e4 {[%clk 0:02:56]}  c6 {[%clk 0:02:59]} 2. d4 {[%clk 0:02:56]}  d5 {[%clk 0:02:59]} 3. Nc3 {[%clk 0:02:56]}  dxe4 {[%clk 0:02:59]} 4. Nxe4 {[%clk 0:02:57]}  Bf5 {[%clk 0:03:00]} 5. Ng3 {[%clk 0:02:58]}  Bg6 {[%clk 0:03:00]} 6. h4 {[%clk 0:02:58]}  h6 {[%clk 0:03:01]} 7. Nf3 {[%clk 0:02:58]}  Nd7 {[%clk 0:03:01]} 8. h5 {[%clk 0:02:58]}  Bh7 {[%clk 0:03:02]} 9. Bd3 {[%clk 0:02:59]}  Bxd3 {[%clk 0:03:03]} 10. Qxd3 {[%clk 0:03:00]}  e6 {[%clk 0:03:03]} 11. Bf4 {[%clk 0:03:00]}  Qa5+ {[%clk 0:03:02]} 12. Bd2 {[%clk 0:03:00]}  Bb4 {[%clk 0:03:03]} 13. c3 {[%clk 0:03:01]}  Be7 {[%clk 0:03:03]} 14. c4 {[%clk 0:03:01]}  Qc7 {[%clk 0:03:03]} 15. O-O-O {[%clk 0:03:02]}  Ngf6 {[%clk 0:03:04]} 16. Ne4 {[%clk 0:03:02]}  b5 {[%clk 0:02:58]} 17. Nxf6+ {[%clk 0:02:55]}  Nxf6 {[%clk 0:02:59]} 18. cxb5 {[%clk 0:02:53]}  cxb5+ {[%clk 0:02:58]} 19. Kb1 {[%clk 0:02:54]}  O-O {[%clk 0:02:59]} 20. g4 {[%clk 0:02:51]}  Nxg4 {[%clk 0:02:47]} 21. Rhg1 {[%clk 0:02:26]}  f5 {[%clk 0:02:40]} 22. Rde1 {[%clk 0:01:50]}  Qd7 {[%clk 0:02:31]} 23. Qb3 {[%clk 0:01:17]}  Bf6 {[%clk 0:02:19]} 24. Rxe6 {[%clk 0:01:06]}  Kh8 {[%clk 0:02:20]} 25. Bb4 {[%clk 0:01:01]}  Rfe8 {[%clk 0:02:03]} 26. d5 {[%clk 0:00:56]}  a5 {[%clk 0:01:52]} 27. Bd2 {[%clk 0:00:38]}  a4 {[%clk 0:01:46]} 28. Rxe8+ {[%clk 0:00:32]}  Rxe8 {[%clk 0:01:47]} 29. Qd3 {[%clk 0:00:29]}  Nxf2 {[%clk 0:01:42]} 30. Qf1 {[%clk 0:00:15]}  Ne4 {[%clk 0:01:39]} 31. Bc1 {[%clk 0:00:12]}  a3 {[%clk 0:01:37]} 32. Nd2 {[%clk 0:00:11]}  axb2 {[%clk 0:01:36]} 33. Nxe4 {[%clk 0:00:11]}  bxc1=Q+ {[%clk 0:01:36]} 0-1


[Site "https://www.chess.com"]

[Event "Titled Tuesday Blitz August 10 2021"]
[White "Kovalev, Vladislav"]
[Black "Iskusnyh, Sergei"]
[WhiteFideId "13504398"]
[BlackFideId "4120027"]
[WhiteElo "2573"]
[BlackElo "2492"]
[Result "1-0"]
[Round "02"]
[TimeControl "180+1"]
[Date "2021.08.10"]
[WhiteClock "0:00:10"]
[BlackClock "0:00:02"]

1. e4 {[%clk 0:03:00]}  e6 {[%clk 0:02:59]} 2. d4 {[%clk 0:02:56]}  d5 {[%clk 0:03:00]} 3. Nd2 {[%clk 0:02:56]}  c5 {[%clk 0:02:59]} 4. Ngf3 {[%clk 0:02:56]}  Nc6 {[%clk 0:02:55]} 5. exd5 {[%clk 0:02:56]}  exd5 {[%clk 0:02:55]} 6. Bb5 {[%clk 0:02:56]}  cxd4 {[%clk 0:02:55]} 7. O-O {[%clk 0:02:55]}  Bd6 {[%clk 0:02:55]} 8. Nb3 {[%clk 0:02:54]}  Ne7 {[%clk 0:02:55]} 9. Nbxd4 {[%clk 0:02:47]}  O-O {[%clk 0:02:56]} 10. h3 {[%clk 0:02:46]}  Nxd4 {[%clk 0:02:55]} 11. Nxd4 {[%clk 0:02:41]}  Bc7 {[%clk 0:02:52]} 12. c3 {[%clk 0:01:49]}  Qd6 {[%clk 0:02:43]} 13. Nf3 {[%clk 0:01:49]}  Bf5 {[%clk 0:02:37]} 14. Bd3 {[%clk 0:01:49]}  Rad8 {[%clk 0:02:13]} 15. Re1 {[%clk 0:01:46]}  Bg6 {[%clk 0:01:33]} 16. Bg5 {[%clk 0:01:28]}  f6 {[%clk 0:01:20]} 17. Bh4 {[%clk 0:01:27]}  Bb6 {[%clk 0:01:18]} 18. Qc2 {[%clk 0:00:51]}  Rfe8 {[%clk 0:00:46]} 19. Kf1 {[%clk 0:00:48]}  Qd7 {[%clk 0:00:34]} 20. Bg3 {[%clk 0:00:43]}  Nf5 {[%clk 0:00:33]} 21. Bf4 {[%clk 0:00:39]}  Ne7 {[%clk 0:00:21]} 22. Be3 {[%clk 0:00:36]}  Bc7 {[%clk 0:00:18]} 23. a4 {[%clk 0:00:35]}  a6 {[%clk 0:00:17]} 24. Bc5 {[%clk 0:00:33]}  Bxd3+ {[%clk 0:00:12]} 25. Qxd3 {[%clk 0:00:34]}  Nc6 {[%clk 0:00:12]} 26. Rxe8+ {[%clk 0:00:30]}  Qxe8 {[%clk 0:00:11]} 27. Re1 {[%clk 0:00:29]}  Qf7 {[%clk 0:00:11]} 28. Bd4 {[%clk 0:00:22]}  Qd7 {[%clk 0:00:07]} 29. b3 {[%clk 0:00:20]}  Re8 {[%clk 0:00:07]} 30. Rxe8+ {[%clk 0:00:20]}  Qxe8 {[%clk 0:00:07]} 31. Be3 {[%clk 0:00:20]}  Qe6 {[%clk 0:00:07]} 32. Nd4 {[%clk 0:00:20]}  Qe5 {[%clk 0:00:06]} 33. Nxc6 {[%clk 0:00:19]}  bxc6 {[%clk 0:00:06]} 34. Qxa6 {[%clk 0:00:20]}  h5 {[%clk 0:00:05]} 35. Qxc6 {[%clk 0:00:17]}  Kh7 {[%clk 0:00:05]} 36. b4 {[%clk 0:00:14]}  Bd8 {[%clk 0:00:04]} 37. Qb5 {[%clk 0:00:11]}  Qe4 {[%clk 0:00:03]} 38. Ke2 {[%clk 0:00:10]}  Qc2+ {[%clk 0:00:03]} 39. Bd2 {[%clk 0:00:10]}  Qe4+ {[%clk 0:00:03]} 40. Kf1 {[%clk 0:00:09]}  Qb1+ {[%clk 0:00:02]} 41. Be1 {[%clk 0:00:10]} 1-0


[Site "https://www.chess.com"]

[Event "Titled Tuesday Blitz August 10 2021"]
[White "Leiva, Gianmarco"]
[Black "Zhigalko, Sergei"]
[WhiteFideId "3804399"]
[BlackFideId "13502956"]
[WhiteElo "2365"]
[BlackElo "2662"]
[Result "0-1"]
[Round "02"]
[TimeControl "180+1"]
[Date "2021.08.10"]
[WhiteClock "0:00:03"]
[BlackClock "0:00:34"]

1. e4 {[%clk 0:03:00]}  c5 {[%clk 0:03:00]} 2. Nf3 {[%clk 0:03:01]}  Nc6 {[%clk 0:02:59]} 3. Bb5 {[%clk 0:03:00]}  Nf6 {[%clk 0:02:59]} 4. Nc3 {[%clk 0:02:59]}  Qc7 {[%clk 0:02:59]} 5. O-O {[%clk 0:02:57]}  Nd4 {[%clk 0:02:59]} 6. Re1 {[%clk 0:02:45]}  a6 {[%clk 0:02:58]} 7. Bf1 {[%clk 0:02:44]}  Ng4 {[%clk 0:02:58]} 8. g3 {[%clk 0:02:43]}  Nxf3+ {[%clk 0:02:58]} 9. Qxf3 {[%clk 0:02:43]}  Ne5 {[%clk 0:02:59]} 10. Qe2 {[%clk 0:02:43]}  e6 {[%clk 0:02:59]} 11. d3 {[%clk 0:02:41]}  d6 {[%clk 0:02:59]} 12. f4 {[%clk 0:02:37]}  Nc6 {[%clk 0:02:59]} 13. Be3 {[%clk 0:02:29]}  Be7 {[%clk 0:02:59]} 14. Qf2 {[%clk 0:02:24]}  O-O {[%clk 0:02:58]} 15. Bg2 {[%clk 0:02:06]}  b6 {[%clk 0:02:51]} 16. g4 {[%clk 0:02:00]}  Bb7 {[%clk 0:02:46]} 17. f5 {[%clk 0:01:58]}  Bf6 {[%clk 0:02:34]} 18. g5 {[%clk 0:01:52]}  Be5 {[%clk 0:02:35]} 19. Rf1 {[%clk 0:01:46]}  Nd4 {[%clk 0:02:34]} 20. f6 {[%clk 0:01:23]}  Kh8 {[%clk 0:02:18]} 21. Rac1 {[%clk 0:01:01]}  gxf6 {[%clk 0:02:15]} 22. gxf6 {[%clk 0:01:01]}  Rg8 {[%clk 0:02:15]} 23. Bh6 {[%clk 0:00:57]}  Rg6 {[%clk 0:01:57]} 24. Bg7+ {[%clk 0:00:57]}  Kg8 {[%clk 0:01:58]} 25. Kh1 {[%clk 0:00:54]}  Qd8 {[%clk 0:01:48]} 26. Nd1 {[%clk 0:00:49]}  Nf5 {[%clk 0:01:25]} 27. c3 {[%clk 0:00:03]}  Rc8 {[%clk 0:01:11]} 28. Ne3 {[%clk 0:00:03]}  Nxg7 {[%clk 0:01:08]} 29. fxg7 {[%clk 0:00:04]}  Rxg7 {[%clk 0:01:09]} 30. Rg1 {[%clk 0:00:04]}  Qf6 {[%clk 0:01:04]} 31. Bf3 {[%clk 0:00:04]}  Rg6 {[%clk 0:00:48]} 32. Ng4 {[%clk 0:00:04]}  Qg7 {[%clk 0:00:48]} 33. Nxe5 {[%clk 0:00:04]}  Qxe5 {[%clk 0:00:49]} 34. Qe2 {[%clk 0:00:03]}  d5 {[%clk 0:00:42]} 35. Bh5 {[%clk 0:00:03]}  dxe4 {[%clk 0:00:40]} 36. Bxg6 {[%clk 0:00:03]}  hxg6 {[%clk 0:00:36]} 37. dxe4 {[%clk 0:00:01]}  Qxe4+ {[%clk 0:00:33]} 38. Qxe4 {[%clk 0:00:02]}  Bxe4+ {[%clk 0:00:34]} 39. Rg2 {[%clk 0:00:03]}  Rd8 {[%clk 0:00:35]} 40. Re1 {[%clk 0:00:03]}  Bxg2+ {[%clk 0:00:33]} 41. Kxg2 {[%clk 0:00:03]}  Rd2+ {[%clk 0:00:34]} 0-1


[Site "https://www.chess.com"]

[Event "Titled Tuesday Blitz August 10 2021"]
[White "Makhnev, Denis"]
[Black "Krishnan, Varun"]
[WhiteFideId "13707647"]
[BlackFideId "5054508"]
[WhiteElo "2537"]
[BlackElo "2604"]
[Result "1-0"]
[Round "02"]
[TimeControl "180+1"]
[Date "2021.08.10"]
[WhiteClock "0:00:57"]
[BlackClock "0:00:06"]

1. d4 {[%clk 0:03:00]}  d5 {[%clk 0:02:43]} 2. c4 {[%clk 0:02:59]}  e6 {[%clk 0:02:43]} 3. Nf3 {[%clk 0:03:00]}  Nf6 {[%clk 0:02:43]} 4. g3 {[%clk 0:03:00]}  Be7 {[%clk 0:02:43]} 5. Bg2 {[%clk 0:03:01]}  O-O {[%clk 0:02:43]} 6. O-O {[%clk 0:03:02]}  dxc4 {[%clk 0:02:42]} 7. Qc2 {[%clk 0:03:02]}  a6 {[%clk 0:02:41]} 8. a4 {[%clk 0:03:02]}  Bd7 {[%clk 0:02:41]} 9. Qxc4 {[%clk 0:03:02]}  Bc6 {[%clk 0:02:38]} 10. Bf4 {[%clk 0:03:02]}  Nbd7 {[%clk 0:02:31]} 11. Nc3 {[%clk 0:03:02]}  Nb6 {[%clk 0:02:30]} 12. Qb3 {[%clk 0:03:01]}  Nbd5 {[%clk 0:02:30]} 13. Rfd1 {[%clk 0:02:53]}  Nxf4 {[%clk 0:02:22]} 14. gxf4 {[%clk 0:02:54]}  Nd5 {[%clk 0:01:49]} 15. e3 {[%clk 0:02:53]}  Bd6 {[%clk 0:01:36]} 16. Ne5 {[%clk 0:02:01]}  Nxc3 {[%clk 0:01:04]} 17. Nxc6 {[%clk 0:01:59]}  Ne2+ {[%clk 0:01:02]} 18. Kf1 {[%clk 0:01:58]}  bxc6 {[%clk 0:01:02]} 19. Kxe2 {[%clk 0:01:57]}  Rb8 {[%clk 0:01:02]} 20. Qc2 {[%clk 0:01:57]}  Qe7 {[%clk 0:00:33]} 21. Bxc6 {[%clk 0:01:55]}  Rb4 {[%clk 0:00:33]} 22. b3 {[%clk 0:01:53]}  Rfb8 {[%clk 0:00:33]} 23. Rd3 {[%clk 0:01:52]}  Qh4 {[%clk 0:00:30]} 24. Bf3 {[%clk 0:01:50]}  f6 {[%clk 0:00:26]} 25. Rg1 {[%clk 0:01:46]}  e5 {[%clk 0:00:26]} 26. fxe5 {[%clk 0:01:26]}  fxe5 {[%clk 0:00:25]} 27. dxe5 {[%clk 0:01:26]}  Bxe5 {[%clk 0:00:26]} 28. Qc5 {[%clk 0:01:27]}  Qf6 {[%clk 0:00:20]} 29. Rd7 {[%clk 0:01:22]}  Bd6 {[%clk 0:00:18]} 30. Rgxg7+ {[%clk 0:01:01]}  Qxg7 {[%clk 0:00:19]} 31. Rxg7+ {[%clk 0:01:02]}  Kxg7 {[%clk 0:00:20]} 32. Qg5+ {[%clk 0:01:02]}  Kf7 {[%clk 0:00:13]} 33. Bd5+ {[%clk 0:01:00]}  Ke8 {[%clk 0:00:13]} 34. Be6 {[%clk 0:00:59]}  c5 {[%clk 0:00:07]} 35. Qg8+ {[%clk 0:00:57]}  Bf8 {[%clk 0:00:06]} 36. Qf7+ {[%clk 0:00:57]} 1-0


[Site "https://www.chess.com"]

[Event "Titled Tuesday Blitz August 10 2021"]
[White "Mamedov, Rauf"]
[Black "Gelman, Alexander"]
[WhiteFideId "13401653"]
[BlackFideId "4118316"]
[WhiteElo "2657"]
[BlackElo "2375"]
[Result "1/2-1/2"]
[Round "02"]
[TimeControl "180+1"]
[Date "2021.08.10"]
[WhiteClock "0:00:13"]
[BlackClock "0:00:13"]

1. e4 {[%clk 0:03:00]}  c5 {[%clk 0:02:57]} 2. Nf3 {[%clk 0:03:00]}  e6 {[%clk 0:02:57]} 3. c3 {[%clk 0:03:00]}  Nc6 {[%clk 0:02:55]} 4. d4 {[%clk 0:02:59]}  d5 {[%clk 0:02:55]} 5. e5 {[%clk 0:02:59]}  Bd7 {[%clk 0:02:55]} 6. Bd3 {[%clk 0:03:00]}  cxd4 {[%clk 0:02:55]} 7. O-O {[%clk 0:02:59]}  Qb6 {[%clk 0:02:54]} 8. Re1 {[%clk 0:02:59]}  Nge7 {[%clk 0:02:51]} 9. h4 {[%clk 0:02:57]}  h6 {[%clk 0:02:35]} 10. h5 {[%clk 0:02:58]}  Rc8 {[%clk 0:02:32]} 11. Nbd2 {[%clk 0:02:57]}  dxc3 {[%clk 0:02:31]} 12. bxc3 {[%clk 0:02:58]}  Na5 {[%clk 0:02:28]} 13. Rb1 {[%clk 0:02:57]}  Qc7 {[%clk 0:02:28]} 14. Nb3 {[%clk 0:02:56]}  Nxb3 {[%clk 0:02:13]} 15. axb3 {[%clk 0:02:35]}  Nc6 {[%clk 0:02:12]} 16. Bf4 {[%clk 0:02:34]}  Bc5 {[%clk 0:02:02]} 17. Rc1 {[%clk 0:02:30]}  Qb6 {[%clk 0:01:51]} 18. Re2 {[%clk 0:02:28]}  a5 {[%clk 0:01:44]} 19. Rb1 {[%clk 0:02:24]}  Be7 {[%clk 0:01:41]} 20. Rd2 {[%clk 0:02:14]}  Na7 {[%clk 0:01:37]} 21. c4 {[%clk 0:02:13]}  Bc6 {[%clk 0:01:30]} 22. Rc1 {[%clk 0:02:08]}  dxc4 {[%clk 0:01:22]} 23. Bxc4 {[%clk 0:02:08]}  O-O {[%clk 0:01:21]} 24. Be3 {[%clk 0:02:08]}  Bxf3 {[%clk 0:00:59]} 25. Qxf3 {[%clk 0:01:30]}  Bc5 {[%clk 0:00:59]} 26. Bf4 {[%clk 0:01:11]}  Rfd8 {[%clk 0:00:53]} 27. Rcd1 {[%clk 0:01:09]}  Rxd2 {[%clk 0:00:53]} 28. Rxd2 {[%clk 0:01:10]}  Nc6 {[%clk 0:00:46]} 29. Qg3 {[%clk 0:01:02]}  Kh8 {[%clk 0:00:40]} 30. Rd7 {[%clk 0:01:01]}  Rc7 {[%clk 0:00:33]} 31. Rd1 {[%clk 0:00:56]}  Nd4 {[%clk 0:00:30]} 32. Kh1 {[%clk 0:00:52]}  Rd7 {[%clk 0:00:25]} 33. Qg4 {[%clk 0:00:51]}  Rd8 {[%clk 0:00:24]} 34. Be3 {[%clk 0:00:48]}  Nc6 {[%clk 0:00:19]} 35. Rxd8+ {[%clk 0:00:42]}  Nxd8 {[%clk 0:00:20]} 36. Bxc5 {[%clk 0:00:16]}  Qxc5 {[%clk 0:00:20]} 37. f4 {[%clk 0:00:17]}  Qd4 {[%clk 0:00:19]} 38. Qf3 {[%clk 0:00:16]}  Nc6 {[%clk 0:00:19]} 39. Bb5 {[%clk 0:00:16]}  Qd5 {[%clk 0:00:17]} 40. Qf1 {[%clk 0:00:12]}  Nd4 {[%clk 0:00:15]} 41. Bc4 {[%clk 0:00:12]}  Qe4 {[%clk 0:00:16]} 42. Bd3 {[%clk 0:00:11]}  Qe3 {[%clk 0:00:16]} 43. Bb1 {[%clk 0:00:11]}  Ne2 {[%clk 0:00:15]} 44. Qd1 {[%clk 0:00:08]}  Nd4 {[%clk 0:00:11]} 45. g3 {[%clk 0:00:08]}  Qf3+ {[%clk 0:00:11]} 46. Qxf3 {[%clk 0:00:08]}  Nxf3 {[%clk 0:00:11]} 47. Kg2 {[%clk 0:00:05]}  Nd4 {[%clk 0:00:11]} 48. Ba2 {[%clk 0:00:06]}  Kg8 {[%clk 0:00:10]} 49. Kf2 {[%clk 0:00:06]}  Kf8 {[%clk 0:00:11]} 50. Ke3 {[%clk 0:00:07]}  Nc6 {[%clk 0:00:11]} 51. Bb1 {[%clk 0:00:06]}  Ke7 {[%clk 0:00:12]} 52. Kd3 {[%clk 0:00:06]}  f6 {[%clk 0:00:12]} 53. Kc4 {[%clk 0:00:07]}  fxe5 {[%clk 0:00:12]} 54. fxe5 {[%clk 0:00:08]}  Nxe5+ {[%clk 0:00:13]} 55. Kb5 {[%clk 0:00:09]}  Kd6 {[%clk 0:00:12]} 56. Be4 {[%clk 0:00:09]}  Kc7 {[%clk 0:00:11]} 57. Kxa5 {[%clk 0:00:09]}  Nd7 {[%clk 0:00:11]} 58. Kb5 {[%clk 0:00:09]}  Nf6 {[%clk 0:00:11]} 59. Bf3 {[%clk 0:00:10]}  Nd7 {[%clk 0:00:12]} 60. Be2 {[%clk 0:00:09]}  Ne5 {[%clk 0:00:11]} 61. Kc5 {[%clk 0:00:09]}  Nd7+ {[%clk 0:00:11]} 62. Kd4 {[%clk 0:00:09]}  Kd6 {[%clk 0:00:12]} 63. b4 {[%clk 0:00:08]}  b6 {[%clk 0:00:12]} 64. Ke4 {[%clk 0:00:07]}  Nf6+ {[%clk 0:00:12]} 65. Kd4 {[%clk 0:00:07]}  e5+ {[%clk 0:00:12]} 66. Kc4 {[%clk 0:00:08]}  Ne4 {[%clk 0:00:11]} 67. Bd3 {[%clk 0:00:07]}  Nxg3 {[%clk 0:00:11]} 68. Kb5 {[%clk 0:00:07]}  Kc7 {[%clk 0:00:11]} 69. Bg6 {[%clk 0:00:07]}  e4 {[%clk 0:00:11]} 70. Kc4 {[%clk 0:00:08]}  Kd6 {[%clk 0:00:12]} 71. Kd4 {[%clk 0:00:08]}  Kc6 {[%clk 0:00:12]} 72. Ke3 {[%clk 0:00:06]}  Kb5 {[%clk 0:00:12]} 73. Kf4 {[%clk 0:00:07]}  Ne2+ {[%clk 0:00:12]} 74. Kxe4 {[%clk 0:00:07]}  Kxb4 {[%clk 0:00:13]} 75. Ke5 {[%clk 0:00:08]}  b5 {[%clk 0:00:13]} 76. Ke6 {[%clk 0:00:09]}  Kc5 {[%clk 0:00:12]} 77. Kf7 {[%clk 0:00:10]}  Nf4 {[%clk 0:00:12]} 78. Kxg7 {[%clk 0:00:11]}  Nxh5+ {[%clk 0:00:12]} 79. Bxh5 {[%clk 0:00:11]}  b4 {[%clk 0:00:12]} 80. Kxh6 {[%clk 0:00:12]}  b3 {[%clk 0:00:13]} 81. Bg6 {[%clk 0:00:13]}  b2 {[%clk 0:00:13]} 1/2-1/2


[Site "https://www.chess.com"]

[Event "Titled Tuesday Blitz August 10 2021"]
[White "Moussard, Jules"]
[Black "Azaladze, Shota"]
[WhiteFideId "642908"]
[BlackFideId "13603027"]
[WhiteElo "2644"]
[BlackElo "2452"]
[Result "1-0"]
[Round "02"]
[TimeControl "180+1"]
[Date "2021.08.10"]
[WhiteClock "0:00:27"]
[BlackClock "0:00:22"]

1. Nf3 {[%clk 0:03:00]}  g6 {[%clk 0:02:58]} 2. d4 {[%clk 0:02:57]}  Bg7 {[%clk 0:02:58]} 3. e3 {[%clk 0:02:57]}  d6 {[%clk 0:02:57]} 4. Be2 {[%clk 0:02:55]}  e5 {[%clk 0:02:58]} 5. b4 {[%clk 0:02:53]}  e4 {[%clk 0:02:47]} 6. Nfd2 {[%clk 0:02:53]}  f5 {[%clk 0:02:48]} 7. O-O {[%clk 0:02:49]}  Nf6 {[%clk 0:02:47]} 8. c4 {[%clk 0:02:49]}  c5 {[%clk 0:02:48]} 9. Bb2 {[%clk 0:02:43]}  O-O {[%clk 0:02:47]} 10. dxc5 {[%clk 0:02:37]}  dxc5 {[%clk 0:02:47]} 11. b5 {[%clk 0:02:36]}  Be6 {[%clk 0:02:46]} 12. Nb3 {[%clk 0:02:34]}  Nbd7 {[%clk 0:02:45]} 13. Qd6 {[%clk 0:02:04]}  Re8 {[%clk 0:02:42]} 14. Nc3 {[%clk 0:02:00]}  Qb8 {[%clk 0:02:27]} 15. Rfd1 {[%clk 0:01:58]}  Qxd6 {[%clk 0:02:25]} 16. Rxd6 {[%clk 0:01:59]}  b6 {[%clk 0:02:22]} 17. Na4 {[%clk 0:01:38]}  Re7 {[%clk 0:01:47]} 18. Rad1 {[%clk 0:01:35]}  Nf8 {[%clk 0:01:43]} 19. h3 {[%clk 0:01:24]}  Rd7 {[%clk 0:01:31]} 20. Nbxc5 {[%clk 0:01:16]}  Rxd6 {[%clk 0:01:18]} 21. Rxd6 {[%clk 0:01:15]}  bxc5 {[%clk 0:01:19]} 22. Nxc5 {[%clk 0:01:12]}  Ne8 {[%clk 0:01:18]} 23. Ra6 {[%clk 0:01:12]}  Bxb2 {[%clk 0:01:17]} 24. Nxe6 {[%clk 0:01:12]}  Nxe6 {[%clk 0:01:13]} 25. Rxe6 {[%clk 0:01:13]}  Ba3 {[%clk 0:01:14]} 26. Rc6 {[%clk 0:01:10]}  Rd8 {[%clk 0:01:07]} 27. c5 {[%clk 0:01:08]}  Rd2 {[%clk 0:01:02]} 28. Bc4+ {[%clk 0:01:08]}  Kf8 {[%clk 0:01:02]} 29. Bb3 {[%clk 0:00:56]}  Ke7 {[%clk 0:00:57]} 30. h4 {[%clk 0:00:47]}  Rd3 {[%clk 0:00:53]} 31. b6 {[%clk 0:00:45]}  axb6 {[%clk 0:00:51]} 32. cxb6 {[%clk 0:00:46]}  Nd6 {[%clk 0:00:50]} 33. Rc7+ {[%clk 0:00:43]}  Kd8 {[%clk 0:00:49]} 34. Rxh7 {[%clk 0:00:40]}  Bc5 {[%clk 0:00:39]} 35. b7 {[%clk 0:00:35]}  Ba7 {[%clk 0:00:37]} 36. Rg7 {[%clk 0:00:30]}  Rc3 {[%clk 0:00:37]} 37. g3 {[%clk 0:00:30]}  Rc7 {[%clk 0:00:31]} 38. Rxg6 {[%clk 0:00:28]}  Nxb7 {[%clk 0:00:31]} 39. Rg8+ {[%clk 0:00:27]}  Ke7 {[%clk 0:00:31]} 40. h5 {[%clk 0:00:28]}  Kf6 {[%clk 0:00:24]} 41. Rg6+ {[%clk 0:00:28]}  Ke7 {[%clk 0:00:24]} 42. Rg7+ {[%clk 0:00:28]}  Kd6 {[%clk 0:00:22]} 43. Rxc7 {[%clk 0:00:28]}  Kxc7 {[%clk 0:00:22]} 44. h6 {[%clk 0:00:27]} 1-0


[Site "https://www.chess.com"]

[Event "Titled Tuesday Blitz August 10 2021"]
[White "Peralta, Eduardo"]
[Black "Rud_Makarian"]
[WhiteFideId "3700062"]
[WhiteElo "2205"]
[BlackElo "2859"]
[Result "1-0"]
[Round "02"]
[TimeControl "180+1"]
[Date "2021.08.10"]
[WhiteClock "0:00:33"]
[BlackClock "0:00:01"]

1. d4 {[%clk 0:03:00]}  Nf6 {[%clk 0:02:53]} 2. c4 {[%clk 0:03:00]}  g6 {[%clk 0:02:53]} 3. Nc3 {[%clk 0:02:59]}  Bg7 {[%clk 0:02:54]} 4. e4 {[%clk 0:02:59]}  d6 {[%clk 0:02:55]} 5. f3 {[%clk 0:03:00]}  Nbd7 {[%clk 0:02:53]} 6. Bg5 {[%clk 0:02:47]}  a6 {[%clk 0:02:47]} 7. Qd2 {[%clk 0:02:40]}  O-O {[%clk 0:02:27]} 8. Nge2 {[%clk 0:02:28]}  b5 {[%clk 0:02:26]} 9. d5 {[%clk 0:02:26]}  Ne5 {[%clk 0:01:32]} 10. cxb5 {[%clk 0:02:23]}  axb5 {[%clk 0:01:31]} 11. Nd4 {[%clk 0:02:18]}  b4 {[%clk 0:01:29]} 12. Ncb5 {[%clk 0:02:18]}  Bd7 {[%clk 0:01:25]} 13. Be2 {[%clk 0:02:13]}  c5 {[%clk 0:01:03]} 14. dxc6 {[%clk 0:02:05]}  Nxc6 {[%clk 0:01:03]} 15. Nxc6 {[%clk 0:02:06]}  Bxc6 {[%clk 0:01:04]} 16. Nd4 {[%clk 0:02:05]}  Qb6 {[%clk 0:00:53]} 17. Be3 {[%clk 0:02:04]}  Qb7 {[%clk 0:00:49]} 18. Nxc6 {[%clk 0:02:03]}  Qxc6 {[%clk 0:00:49]} 19. O-O {[%clk 0:02:00]}  Qb7 {[%clk 0:00:46]} 20. Rfc1 {[%clk 0:01:55]}  Nd7 {[%clk 0:00:44]} 21. Rc4 {[%clk 0:01:47]}  b3 {[%clk 0:00:33]} 22. a4 {[%clk 0:01:43]}  Rfc8 {[%clk 0:00:32]} 23. a5 {[%clk 0:01:37]}  Ne5 {[%clk 0:00:22]} 24. a6 {[%clk 0:01:16]}  Qd7 {[%clk 0:00:14]} 25. Rxc8+ {[%clk 0:01:11]}  Qxc8 {[%clk 0:00:15]} 26. Qd5 {[%clk 0:01:03]}  Nd7 {[%clk 0:00:09]} 27. a7 {[%clk 0:00:58]}  Bxb2 {[%clk 0:00:07]} 28. Rb1 {[%clk 0:00:54]}  Ba3 {[%clk 0:00:08]} 29. Rxb3 {[%clk 0:00:52]}  Bc5 {[%clk 0:00:07]} 30. Bxc5 {[%clk 0:00:46]}  dxc5 {[%clk 0:00:03]} 31. Qb7 {[%clk 0:00:38]}  Rb8 {[%clk 0:00:01]} 32. Qxb8 {[%clk 0:00:33]} 1-0


[Site "https://www.chess.com"]